fUST/lending_fUST_20240111
["ID","MTS","AMOUNT","RATE_DAILY","PERIOD"]
[311133103,1704928246042,-500.0,0.00030684,2]
[311133105,1704928246052,-500.0,0.00030684,2]
[311133106,1704928246061,-500.0,0.00030684,2]
[311133107,1704928246070,-529.42,0.00030684,2]
[311133108,1704928246079,-500.0,0.00030684,2]
[311133109,1704928246088,-500.0,0.00030684,2]
[311133110,1704928246097,-500.0,0.00030684,2]
[311133111,1704928246106,-500.0,0.00030684,2]
[311133112,1704928246115,-702.83,0.00030684,2]
[311133113,1704928246124,-500.0,0.00030684,2]
[311133114,1704928246133,-500.0,0.00030684,2]
[311133115,1704928246143,-500.0,0.00030684,2]
[311133116,1704928246152,-2163.93,0.00030684,2]
[311133118,1704928246164,-500.0,0.00030684,2]
[311133120,1704928246173,-500.0,0.00030684,2]
[311133121,1704928246182,-500.0,0.00030684,2]
[311133122,1704928246191,-500.0,0.00030684,2]
[311133123,1704928246200,-500.0,0.00030684,2]
[311133124,1704928246209,-540.19242962,0.00030684,2]
[311133125,1704928246218,-8763.72,0.00030684,2]
[311133126,1704928246227,-500.0,0.00030684,2]
[311133128,1704928246236,-500.0,0.00030684,2]
[311133130,1704928246246,-500.0,0.00030684,2]
[311133132,1704928246255,-500.0,0.00030684,2]
[311133134,1704928246265,-500.0,0.00030684,2]
[311133137,1704928246273,-500.0,0.00030684,2]
[311133140,1704928246283,-500.0,0.00030684,2]
[311133143,1704928246291,-500.0,0.00030684,2]
[311133144,1704928246300,-500.0,0.00030684,2]
[311133146,1704928246309,-500.0,0.00030684,2]
[311133147,1704928246319,-2371.9,0.00030684,2]
[311133148,1704928246331,-500.0,0.00030684,2]
[311133149,1704928246341,-500.0,0.00030684,2]
[311133150,1704928246350,-500.0,0.00030684,2]
[311133151,1704928246360,-500.0,0.00030684,2]
[311133152,1704928246370,-6819.4,0.00030684,2]
[311133153,1704928246379,-500.0,0.00030684,2]
[311133155,1704928246388,-500.0,0.00030684,2]
[311133157,1704928246397,-2861.77,0.00030684,2]
[311133159,1704928246410,-500.0,0.00030684,2]
[311133161,1704928246419,-500.0,0.00030684,2]
[311133163,1704928246428,-500.0,0.00030684,2]
[311133164,1704928246437,-500.0,0.00030684,2]
[311133165,1704928246445,-500.0,0.00030684,2]
[311133166,1704928246454,-2454.77,0.00030684,2]
[311133167,1704928246463,-639.28,0.00030684,2]
[311133169,1704928246472,-500.0,0.00030684,2]
[311133171,1704928246482,-407.09468989,0.00030684,2]
[311133173,1704928246491,-884.01,0.00030684,2]
[311133175,1704928246500,-1572.8,0.00030684,2]
[311133177,1704928246509,-500.0,0.00030684,2]
[311133179,1704928246518,-758.56,0.00030684,2]
[311133181,1704928246527,-500.0,0.00030684,2]
[311133182,1704928246536,-500.0,0.00030684,2]
[311133184,1704928246545,-500.0,0.00030684,2]
[311133186,1704928246555,-1113.14,0.00030684,2]
[311133188,1704928246563,-500.0,0.00030684,2]
[311133190,1704928246572,-500.0,0.00030684,2]
[311133192,1704928246581,-500.0,0.00030684,2]
[311133194,1704928246590,-500.0,0.00030684,2]
[311133196,1704928246600,-500.0,0.00030684,2]
[311133198,1704928246609,-500.0,0.00030684,2]
[311133200,1704928246618,-1461.37,0.00030684,2]
[311133202,1704928246628,-500.0,0.00030684,2]
[311133204,1704928246640,-500.0,0.00030684,2]
[311133207,1704928246651,-662.53,0.00030684,2]
[311133208,1704928246663,-621.91,0.00030684,2]
[311133211,1704928246674,-229.52217026,0.00030684,2]
[311133212,1704928246685,-1075.2,0.00030684,2]
[311133214,1704928246695,-500.0,0.00030684,2]
[311133216,1704928246705,-500.0,0.00030684,2]
[311133218,1704928246715,-500.0,0.00030684,2]
[311133220,1704928246725,-500.0,0.00030684,2]
[311133222,1704928246735,-500.0,0.00030684,2]
[311133225,1704928246745,-501.35962442,0.00030684,2]
[311133226,1704928246755,-151.0,0.00030684,2]
[311133228,1704928246764,-151.0,0.00030684,2]
[311133230,1704928246775,-258.059664,0.00030825,2]
[311133232,1704928246786,-227.987495,0.00030825,2]
[311133234,1704928246796,-197.915325,0.00030825,2]
[311133236,1704928246806,-227.987494,0.00030825,2]
[311133238,1704928246816,-197.72530733,0.00030887,2]
[311133240,1704928246825,-1167.591205,0.00030887,2]
[311133241,1704928246835,-288.51932619,0.00030887,2]
[311133242,1704928246846,-2000.0,0.000309,2]
[311133243,1704928246855,-2000.0,0.0003091,2]
[311133244,1704928246864,-2000.0,0.0003092,2]
[311133245,1704928246873,-2000.0,0.0003093,2]
[311133246,1704928246883,-5000.0,0.00030935,2]
[311133248,1704928246893,-2000.0,0.0003094,2]
[311133250,1704928246903,-2000.0,0.0003095,2]
[311133252,1704928246919,-500.0,0.00030958,2]
[311133254,1704928246930,-668.59,0.00030958,2]
[311133256,1704928246939,-500.0,0.00030958,2]
[311133258,1704928246949,-500.0,0.00030958,2]
[311133260,1704928246958,-500.0,0.00030958,2]
[311133262,1704928246968,-500.0,0.00030958,2]
[311133264,1704928246977,-500.0,0.00030958,2]
[311133266,1704928246986,-500.0,0.00030958,2]
[311133268,1704928246995,-507.29,0.00030958,2]
[311133270,1704928247005,-500.0,0.00030958,2]
[311133272,1704928247013,-500.0,0.00030958,2]
[311133274,1704928247022,-500.0,0.00030958,2]
[311133276,1704928247032,-500.0,0.00030958,2]
[311133278,1704928247041,-500.0,0.00030958,2]
[311133280,1704928247050,-500.0,0.00030958,2]
[311133282,1704928247059,-566.57,0.00030958,2]
[311133284,1704928247068,-256.03265185,0.00030958,2]
[311133286,1704928247077,-500.0,0.00030958,2]
[311133288,1704928247087,-500.0,0.00030958,2]
[311133290,1704928247096,-500.0,0.00030958,2]
[311133292,1704928247104,-500.0,0.00030958,2]
[311133294,1704928247114,-500.0,0.00030958,2]
[311133296,1704928247123,-500.0,0.00030958,2]
[311133297,1704928247132,-1352.47,0.00030958,2]
[311133299,1704928247142,-500.0,0.00030958,2]
[311133302,1704928247152,-500.0,0.00030958,2]
[311133303,1704928247166,-500.0,0.00030958,2]
[311133305,1704928247175,-501.09,0.00030958,2]
[311133307,1704928247185,-500.0,0.00030958,2]
[311133309,1704928247195,-500.0,0.00030958,2]
[311133311,1704928247207,-253.82020334,0.00030958,2]
[311133313,1704928247215,-500.0,0.00030958,2]
[311133315,1704928247224,-545.41,0.00030958,2]
[311133317,1704928247233,-500.0,0.00030958,2]
[311133319,1704928247242,-500.0,0.00030958,2]
[311133321,1704928247254,-500.0,0.00030958,2]
[311133323,1704928247263,-500.0,0.00030958,2]
[311133325,1704928247272,-500.0,0.00030958,2]
[311133327,1704928247280,-500.0,0.00030958,2]
[311133329,1704928247290,-500.0,0.00030958,2]
[311133331,1704928247299,-500.0,0.00030958,2]
[311133334,1704928247310,-500.0,0.00030958,2]
[311133335,1704928247320,-500.0,0.00030958,2]
[311133337,1704928247334,-500.0,0.00030958,2]
[311133340,1704928247344,-529.42,0.00030958,2]
[311133342,1704928247357,-500.0,0.00030958,2]
[311133345,1704928247366,-500.0,0.00030958,2]
[311133347,1704928247376,-500.0,0.00030958,2]
[311133349,1704928247386,-500.0,0.00030958,2]
[311133351,1704928247395,-702.83,0.00030958,2]
[311133354,1704928247405,-500.0,0.00030958,2]
[311133356,1704928247418,-500.0,0.00030958,2]
[311133358,1704928247427,-500.0,0.00030958,2]
[311133360,1704928247436,-2163.93,0.00030958,2]
[311133362,1704928247446,-500.0,0.00030958,2]
[311133364,1704928247456,-500.0,0.00030958,2]
[311133366,1704928247465,-500.0,0.00030958,2]
[311133368,1704928247474,-500.0,0.00030958,2]
[311133370,1704928247483,-500.0,0.00030958,2]
[311133372,1704928247493,-8763.72,0.00030958,2]
[311133374,1704928247502,-500.0,0.00030958,2]
[311133376,1704928247511,-500.0,0.00030958,2]
[311133378,1704928247520,-500.0,0.00030958,2]
[311133380,1704928247529,-500.0,0.00030958,2]
[311133382,1704928247538,-500.0,0.00030958,2]
[311133384,1704928247547,-500.0,0.00030958,2]
[311133386,1704928247557,-500.0,0.00030958,2]
[311133388,1704928247565,-500.0,0.00030958,2]
[311133390,1704928247574,-500.0,0.00030958,2]
[311133392,1704928247583,-2371.9,0.00030958,2]
[311133393,1704928247592,-500.0,0.00030958,2]
[311133395,1704928247601,-500.0,0.00030958,2]
[311133397,1704928247611,-500.0,0.00030958,2]
[311133408,1704928247704,-6819.4,0.00030958,2]
[311133410,1704928247713,-500.0,0.00030958,2]
[311133412,1704928247725,-500.0,0.00030958,2]
[311133414,1704928247735,-500.0,0.00030958,2]
[311133417,1704928247744,-2861.77,0.00030958,2]
[311133418,1704928247754,-500.0,0.00030958,2]
[311133420,1704928247763,-500.0,0.00030958,2]
[311133422,1704928247773,-500.0,0.00030958,2]
[311133424,1704928247782,-2454.77,0.00030958,2]
[311133426,1704928247791,-639.28,0.00030958,2]
[311133428,1704928247800,-884.01,0.00030958,2]
[311133430,1704928247809,-1572.8,0.00030958,2]
[311133432,1704928247818,-500.0,0.00030958,2]
[311133434,1704928247826,-758.56,0.00030958,2]
[311133436,1704928247835,-500.0,0.00030958,2]
[311133437,1704928247844,-1113.14,0.00030958,2]
[311133439,1704928247854,-500.0,0.00030958,2]
[311133441,1704928247863,-500.0,0.00030958,2]
[311133444,1704928247873,-500.0,0.00030958,2]
[311133445,1704928247883,-500.0,0.00030958,2]
[311133448,1704928247892,-1461.37,0.00030958,2]
[311133450,1704928247901,-500.0,0.00030958,2]
[311133452,1704928247913,-500.0,0.00030958,2]
[311133453,1704928247923,-662.53,0.00030958,2]
[311133455,1704928247932,-621.91,0.00030958,2]
[311133457,1704928247941,-1075.2,0.00030958,2]
[311133460,1704928247951,-264.91785626,0.00030958,2]
[311133461,1704928247960,-500.0,0.00030958,2]
[311133463,1704928247969,-500.0,0.00030958,2]
[311133465,1704928247978,-500.0,0.00030958,2]
[311133467,1704928247987,-537.8,0.00030958,2]
[311133469,1704928247997,-5806.68528,0.00030958,2]
[311133472,1704928248006,-5806.68528,0.00030958,2]
[311133474,1704928248015,-2000.0,0.0003096,2]
[311133476,1704928248024,-5000.0,0.0003096,2]
[311133478,1704928248033,-5000.0,0.00030961,2]
[311133479,1704928248042,-5000.0,0.00030962,2]
[311133481,1704928248051,-591.85,0.00030965,2]
[311133483,1704928248061,-5000.0,0.00030965,2]
[311133485,1704928248070,-2000.0,0.0003097,2]
[311133487,1704928248079,-480.96,0.0003097,2]
[311133489,1704928248088,-4999.99,0.00030972,2]
[311133491,1704928248097,-478.62,0.00030973,2]
[311133493,1704928248107,-2000.0,0.0003098,2]
[311133495,1704928248116,-4999.99,0.00030981,2]
[311133497,1704928248126,-2000.0,0.0003099,2]
[311133499,1704928248136,-500.0,0.00030999,2]
[311133501,1704928248145,-500.0,0.00030999,2]
[311133503,1704928248155,-500.0,0.00030999,2]
[311133505,1704928248169,-443.81468154,0.00030999,2]
[311133507,1704928248179,-500.0,0.00030999,2]
[311133509,1704928248188,-500.0,0.00030999,2]
[311133511,1704928248197,-500.0,0.00030999,2]
[311133512,1704928248208,-600.20189117,0.00030999,2]
[311133514,1704928248217,-500.0,0.00030999,2]
[311133516,1704928248225,-317.07277119,0.00030999,2]
[311133518,1704928248235,-472.7200957,0.00030999,2]
[311133520,1704928248244,-500.0,0.00030999,2]
[311133523,1704928248254,-500.0,0.00030999,2]
[311133525,1704928248263,-500.0,0.00030999,2]
[311133527,1704928248274,-500.0,0.00030999,2]
[311133528,1704928248283,-500.0,0.00030999,2]
[311133531,1704928248293,-500.0,0.00030999,2]
[311133533,1704928248303,-500.0,0.00030999,2]
[311133534,1704928248313,-500.0,0.00030999,2]
[311133536,1704928248322,-428.64566503,0.00030999,2]
[311133539,1704928248336,-500.0,0.00030999,2]
[311133541,1704928248346,-500.0,0.00030999,2]
[311133543,1704928248356,-4215.79787365,0.00031,2]
[311133545,1704928248367,-96831.5408905,0.00031,4]
[311133547,1704928248377,-3199.738815,0.00031,2]
[311133549,1704928248387,-151.0,0.00031,2]
[311133551,1704928248397,-151.0,0.00031,2]
[311133554,1704928248410,-773.053021,0.00031,2]
[311133556,1704928248420,-475.18035019,0.00031,2]
[311133572,1704928248566,-500.0,0.00030136,2]
[311133574,1704928248575,-500.0,0.0003041,2]
[311133575,1704928248584,-297.87267081,0.00031,2]
[311133576,1704928248594,-173.38639317,0.00031009,7]
[311133577,1704928248603,-173.38639317,0.00031052,7]
[311133578,1704928248612,-173.38639317,0.00031112,7]
[311133579,1704928248621,-258.059664,0.00031201,2]
[311133580,1704928248630,-227.987495,0.00031201,2]
[311133581,1704928248639,-197.915325,0.00031201,2]
[311133582,1704928248649,-227.987494,0.00031201,2]
[311133583,1704928248660,-500.0,0.00031232,2]
[311133584,1704928248669,-668.59,0.00031232,2]
[311133585,1704928248679,-500.0,0.00031232,2]
[311133586,1704928248688,-500.0,0.00031232,2]
[311133587,1704928248698,-500.0,0.00031232,2]
[311133588,1704928248707,-500.0,0.00031232,2]
[311133590,1704928248724,-500.0,0.00031232,2]
[311133592,1704928248733,-500.0,0.00031232,2]
[311133594,1704928248742,-500.0,0.00031232,2]
[311133596,1704928248751,-606.37,0.00031232,2]
[311133598,1704928248760,-500.0,0.00031232,2]
[311133600,1704928248769,-500.0,0.00031232,2]
[311133602,1704928248779,-500.0,0.00031232,2]
[311133604,1704928248789,-566.57,0.00031232,2]
[311133606,1704928248799,-575.29318989,0.00031232,2]
[311133608,1704928248808,-500.0,0.00031232,2]
[311133610,1704928248817,-500.0,0.00031232,2]
[311133612,1704928248826,-500.0,0.00031232,2]
[311133614,1704928248835,-1352.47,0.00031232,2]
[311133616,1704928248844,-531.32107642,0.00031232,2]
[311133618,1704928248853,-500.0,0.00031232,2]
[311133620,1704928248862,-501.09,0.00031232,2]
[311133622,1704928248871,-500.0,0.00031232,2]
[311133624,1704928248882,-500.0,0.00031232,2]
[311133626,1704928248891,-500.0,0.00031232,2]
[311133628,1704928248902,-545.41,0.00031232,2]
[311133630,1704928248913,-500.0,0.00031232,2]
[311133632,1704928248922,-500.0,0.00031232,2]
[311133634,1704928248931,-500.0,0.00031232,2]
[311133636,1704928248940,-500.0,0.00031232,2]
[311133638,1704928248949,-500.0,0.00031232,2]
[311133640,1704928248959,-500.0,0.00031232,2]
[311133642,1704928248968,-529.42,0.00031232,2]
[311133644,1704928248977,-500.0,0.00031232,2]
[311133646,1704928248986,-500.0,0.00031232,2]
[311133648,1704928248995,-500.0,0.00031232,2]
[311133650,1704928249004,-702.83,0.00031232,2]
[311133652,1704928249013,-500.0,0.00031232,2]
[311133654,1704928249022,-500.0,0.00031232,2]
[311133656,1704928249031,-500.0,0.00031232,2]
[311133658,1704928249040,-2163.93,0.00031232,2]
[311133659,1704928249050,-500.0,0.00031232,2]
[311133661,1704928249059,-500.0,0.00031232,2]
[311133663,1704928249069,-500.0,0.00031232,2]
[311133665,1704928249078,-500.0,0.00031232,2]
[311133667,1704928249088,-8763.72,0.00031232,2]
[311133669,1704928249097,-500.0,0.00031232,2]
[311133671,1704928249106,-500.0,0.00031232,2]
[311133673,1704928249115,-500.0,0.00031232,2]
[311133675,1704928249124,-500.0,0.00031232,2]
[311133677,1704928249133,-500.0,0.00031232,2]
[311133679,1704928249142,-500.0,0.00031232,2]
[311133681,1704928249151,-500.0,0.00031232,2]
[311133683,1704928249163,-2371.9,0.00031232,2]
[311133685,1704928249172,-500.0,0.00031232,2]
[311133687,1704928249182,-500.0,0.00031232,2]
[311133689,1704928249191,-500.0,0.00031232,2]
[311133691,1704928249201,-6819.4,0.00031232,2]
[311133693,1704928249210,-500.0,0.00031232,2]
[311133695,1704928249221,-500.0,0.00031232,2]
[311133697,1704928249230,-500.0,0.00031232,2]
[311133699,1704928249240,-2861.77,0.00031232,2]
[311133701,1704928249249,-500.0,0.00031232,2]
[311133703,1704928249259,-500.0,0.00031232,2]
[311133705,1704928249268,-2454.77,0.00031232,2]
[311133707,1704928249279,-639.28,0.00031232,2]
[311133709,1704928249290,-884.01,0.00031232,2]
[311133711,1704928249299,-1572.8,0.00031232,2]
[311133713,1704928249310,-758.56,0.00031232,2]
[311133715,1704928249319,-500.0,0.00031232,2]
[311133717,1704928249329,-1113.14,0.00031232,2]
[311133719,1704928249342,-500.0,0.00031232,2]
[311133721,1704928249352,-135.83645663,0.00031232,2]
[311133724,1704928249369,-364.16354337,0.00031232,2]
[311133726,1704928249378,-534.63983472,0.00031232,2]
[311133728,1704928249389,-1461.37,0.00031232,2]
[311133729,1704928249398,-500.0,0.00031232,2]
[311133732,1704928249410,-500.0,0.00031232,2]
[311133733,1704928249420,-662.53,0.00031232,2]
[311133735,1704928249430,-621.91,0.00031232,2]
[311133737,1704928249440,-1075.2,0.00031232,2]
[311133740,1704928249450,-500.0,0.00031232,2]
[311133741,1704928249459,-500.0,0.00031232,2]
[311133743,1704928249468,-500.0,0.00031232,2]
[311133745,1704928249478,-5806.68528,0.00031232,2]
[311133747,1704928249487,-3035.37092892,0.00031232,2]
[311133750,1704928249498,-2771.31435108,0.00031232,2]
[311133752,1704928249508,-151.0,0.0003125,2]
[311133754,1704928249517,-155.0,0.00031305,2]
[311133756,1704928249527,-150.92453773,0.00031367,2]
[311133758,1704928249536,-250.36569715,0.00031367,2]
[311133760,1704928249545,-173.38639317,0.0003137,7]
[311133762,1704928249554,-300.0,0.000315,15]
[311133764,1704928249563,-1500.0,0.000315,2]
[311133766,1704928249572,-500.0,0.00031506,2]
[311133767,1704928249581,-668.59,0.00031506,2]
[311133769,1704928249592,-336.68,0.00031506,2]
[311133771,1704928249601,-500.0,0.00031506,2]
[311133773,1704928249610,-500.0,0.00031506,2]
[311133775,1704928249619,-500.0,0.00031506,2]
[311133777,1704928249629,-342.5,0.00031506,2]
[311133779,1704928249638,-500.0,0.00031506,2]
[311133781,1704928249647,-500.0,0.00031506,2]
[311133783,1704928249656,-500.0,0.00031506,2]
[311133785,1704928249668,-500.0,0.00031506,2]
[311133787,1704928249678,-566.57,0.00031506,2]
[311133790,1704928249687,-340.87121588,0.00031506,2]
[311133792,1704928249697,-500.0,0.00031506,2]
[311133794,1704928249706,-500.0,0.00031506,2]
[311133796,1704928249720,-1352.47,0.00031506,2]
[311133798,1704928249729,-501.09,0.00031506,2]
[311133800,1704928249739,-500.0,0.00031506,2]
[311133802,1704928249748,-500.0,0.00031506,2]
[311133804,1704928249757,-500.0,0.00031506,2]
[311133806,1704928249766,-545.41,0.00031506,2]
[311133808,1704928249776,-500.0,0.00031506,2]
[311133810,1704928249785,-387.73802533,0.00031506,2]
[311133812,1704928249797,-500.0,0.00031506,2]
[311133814,1704928249806,-262.51226806,0.00031506,2]
[311133816,1704928249816,-500.0,0.00031506,2]
[311133818,1704928249825,-500.0,0.00031506,2]
[311133820,1704928249834,-529.42,0.00031506,2]
[311133822,1704928249844,-500.0,0.00031506,2]
[311133824,1704928249852,-500.0,0.00031506,2]
[311133826,1704928249861,-702.83,0.00031506,2]
[311133837,1704928249956,-500.0,0.00031506,2]
[311133839,1704928249966,-500.0,0.00031506,2]
[311133841,1704928249975,-500.0,0.00031506,2]
[311133843,1704928249984,-1660.28212916,0.00031506,2]
[311133854,1704928250130,-1056.05972262,0.00030135,4]
[311133856,1704928250140,-409.65923452,0.00030135,4]
[311133858,1704928250150,-572.01084197,0.00030135,30]
[311133860,1704928250161,-1840.00826361,0.00030674,3]
[311133862,1704928250173,-6988.56173639,0.00030674,3]
[311133864,1704928250182,-503.64787084,0.00031506,2]
[311133867,1704928250192,-500.0,0.00031506,2]
[311133868,1704928250203,-500.0,0.00031506,2]
[311133870,1704928250212,-500.0,0.00031506,2]
[311133872,1704928250221,-500.0,0.00031506,2]
[311133874,1704928250230,-8763.72,0.00031506,2]
[311133876,1704928250240,-500.0,0.00031506,2]
[311133878,1704928250250,-500.0,0.00031506,2]
[311133880,1704928250260,-500.0,0.00031506,2]
[311133882,1704928250271,-500.0,0.00031506,2]
[311133884,1704928250281,-500.0,0.00031506,2]
[311133886,1704928250292,-500.0,0.00031506,2]
[311133888,1704928250307,-500.0,0.00031506,2]
[311133890,1704928250317,-2371.9,0.00031506,2]
[311133892,1704928250329,-500.0,0.00031506,2]
[311133895,1704928250342,-500.0,0.00031506,2]
[311133896,1704928250352,-500.0,0.00031506,2]
[311133898,1704928250362,-6773.07985529,0.00031506,2]
[311133901,1704928250374,-46.32014471,0.00031506,2]
[311133903,1704928250384,-500.0,0.00031506,2]
[311133905,1704928250393,-500.0,0.00031506,2]
[311133907,1704928250402,-500.0,0.00031506,2]
[311133909,1704928250415,-439.33964713,0.00031506,2]
[311133913,1704928250449,-1966.00898885,0.00030135,4]
[311133915,1704928250459,-453.49170309,0.00030135,4]
[311133917,1704928250468,-208.86280621,0.00030135,4]
[311133919,1704928250478,-285.7548216,0.00030135,4]
[311133921,1704928250488,-267.13408485,0.00030135,4]
[311133923,1704928250497,-2422.43035287,0.00031506,2]
[311133925,1704928250507,-500.0,0.00031506,2]
[311133927,1704928250516,-500.0,0.00031506,2]
[311133929,1704928250525,-425.59870036,0.00031506,2]
[311136178,1704928379347,23916.9688938,0.00010592,2]
[311136234,1704928998146,489.42122008,0.0002,7]
[311136235,1704928998178,563.67436085,0.0002,7]
[311136238,1704929011187,342.22178639,0.00010592,2]
[311136239,1704929011841,3831.52999447,0.00010592,2]
[311136240,1704929016137,359.28597611,0.0002,7]
[311136242,1704929027278,1522.97169013,0.00010592,2]
[311136243,1704929028075,151.12997178,0.00028314,30]
[311136244,1704929028137,151.12997178,0.00027748,120]
[311136246,1704929030137,922.69287281,0.0002,7]
[311136247,1704929031815,3831.52999447,0.00010592,2]
[311136248,1704929033121,459.97137997,0.00010592,2]
[311136251,1704929043559,21935.21168305,0.000295,30]
[311136253,1704929047832,2630.80693292,0.00010592,2]
[311136257,1704929116187,1053.09558093,0.0002,7]
[311136261,1704929136155,958.37878591,0.0002,7]
[311136390,1704929433718,-1578.65511595,0.0001902,2]
[311136392,1704929433728,-242.59429943,0.00019021,2]
[311136393,1704929433737,-541.17330562,0.00019021,2]
[311136658,1704929436585,151.07402627,0.00027961,30]
[311136659,1704929436650,151.07402627,0.00027402,120]
[311136852,1704929438198,-246.05359663,0.0001902,2]
[311136854,1704929438208,-686.53707421,0.0001902,2]
[311136856,1704929438218,-178.44106149,0.0001902,2]
[311136858,1704929438228,-20832.93466306,0.0001902,2]
[311136860,1704929438237,-2943.29386013,0.00019021,2]
[311136862,1704929438250,-9873.47446173,0.00019021,2]
[311136864,1704929438259,-155.07753877,0.00019022,3]
[311136866,1704929438269,-469.74969077,0.00019022,2]
[311136869,1704929438294,-2039.1821304,0.00019022,2]
[311136872,1704929438309,-21303.38854992,0.00019022,2]
[311136874,1704929438319,-1067.08288417,0.00019022,2]
[311136876,1704929438329,-1250.66144998,0.00019023,2]
[311136878,1704929438340,-4788.51765555,0.00019023,2]
[311136880,1704929438350,-1239.896093,0.00019023,2]
[311136882,1704929438359,-708.28255979,0.00019024,2]
[311136884,1704929438370,-155.07909034,0.00019024,2]
[311136886,1704929438380,-164.91655517,0.00019024,2]
[311136888,1704929438390,-872.56977946,0.00019024,2]
[311136890,1704929438399,-166.61009921,0.00019025,2]
[311136892,1704929438409,-230.48582873,0.00019025,2]
[311136894,1704929438419,-271.96235488,0.00019025,2]
[311136896,1704929438429,-155.07909034,0.00019025,2]
[311136898,1704929438438,-1989.51321951,0.00019025,2]
[311136900,1704929438448,-155.08064193,0.00019026,2]
[311136902,1704929438458,-155.08064193,0.00019026,2]
[311136904,1704929438467,-901.68385165,0.00019026,2]
[311136906,1704929438477,-13692.10606787,0.00019026,2]
[311136908,1704929438487,-155.08064193,0.00019027,2]
[311136910,1704929438496,-322.83363774,0.00019027,2]
[311136912,1704929438505,-10500.0358078,0.00019027,2]
[311136914,1704929438514,-176.30887294,0.00019027,2]
[311136916,1704929438523,-2702.6697973,0.00019027,5]
[311136918,1704929438533,-190.80461164,0.00019034,2]
[311136919,1704929438545,-520.42865446,0.00019037,2]
[311136921,1704929438555,-553.52733063,0.00019037,2]
[311136923,1704929438564,-2509.67018179,0.00019037,2]
[311136924,1704929438573,-2709.39921815,0.00019037,2]
[311136926,1704929438583,-559.92585863,0.00019037,2]
[311136928,1704929438593,-249.95281177,0.0001904,2]
[311136929,1704929438602,-1145.69834112,0.0001904,2]
[311136930,1704929438611,-173.2654242,0.00019047,2]
[311136931,1704929438621,-266.7531457,0.00019141,2]
[311136932,1704929438630,-1809.56545806,0.00019148,2]
[311136933,1704929438639,-285.7548216,0.00019158,2]
[311136934,1704929438649,-213.97462464,0.00019158,2]
[311136935,1704929438658,-208.86280621,0.00019158,2]
[311136936,1704929438667,-156.27624794,0.00019158,2]
[311136937,1704929438677,-164.76169336,0.00019169,2]
[311136938,1704929438687,-174.82421155,0.00019173,2]
[311136939,1704929438699,-317.1659487,0.00019173,2]
[311136940,1704929438709,-162.686615,0.00019178,2]
[311136941,1704929438718,-1112.08388858,0.000195,2]
[311136942,1704929438728,-500.0,0.00019737,2]
[311136943,1704929438737,-170.38270553,0.00019836,2]
[311136944,1704929438747,-199.09067175,0.00019885,2]
[311136945,1704929438756,-8454.09575656,0.00019899,2]
[311136946,1704929438766,-193.5424782,0.000199,2]
[311136947,1704929438776,-374.40201866,0.000199,2]
[311136948,1704929438786,-216301.02187118,0.000199,2]
[311136949,1704929438799,-373.36459504,0.000199,2]
[311136950,1704929438809,-155.07753877,0.0002,2]
[311136951,1704929438823,-853.57612089,0.0002,2]
[311136952,1704929438833,-155.07753877,0.0002,2]
[311136953,1704929438843,-1195.09669838,0.0002,2]